lending/lending_fUSD_20260104
["ID","MTS","AMOUNT","RATE_DAILY","PERIOD"]
[400441406,1767556104141,-500.0,0.00014685,2]
[400441407,1767556104170,-150.0,0.00014685,2]
[400441408,1767556104201,-500.0,0.00014685,2]
[400441409,1767556104230,-504.27564275,0.00014685,2]
[400441410,1767556104261,-185.9847784,0.00014685,2]
[400441411,1767556104290,-158.72596595,0.00014685,2]
[400441412,1767556104322,-500.0,0.00014685,2]
[400441413,1767556104358,-500.0,0.00014685,2]
[400441414,1767556104390,-500.0,0.00014685,2]
[400441415,1767556104424,-500.0,0.00014685,2]
[400441416,1767556104604,-62.67635016,0.00014685,2]
[400441417,1767556111208,-10000.01,0.00014584,2]
[400441419,1767556122315,-10000.01,0.00014584,2]
[400441420,1767556123435,-10000.01,0.00014584,2]
[400441421,1767556123495,-10000.01,0.00014584,2]
[400441424,1767556134569,-10000.01,0.00014584,2]
[400441425,1767556148577,-300.0,0.00014583,2]
[400441426,1767556148608,-195.0,0.00014584,2]
[400441427,1767556148661,-9010.01,0.00014584,2]
[400441428,1767556148728,-10000.01,0.00014584,2]
[400441429,1767556148917,-10000.01,0.00014584,2]
[400441430,1767556173140,345.1047909,0.00014485,2]
[400441431,1767556174365,-10000.01,0.00014584,2]
[400441432,1767556195032,162.22534839,0.00014485,2]
[400441438,1767556231496,-300.0,0.00014583,2]
[400441439,1767556231507,-1200.0,0.00014583,2]
[400441440,1767556231516,-271.0,0.00014584,2]
[400441441,1767556231526,-10377.0371029,0.00014584,2]
[400441442,1767556231538,-74670.43114358,0.00014584,2]
[400441443,1767556231559,-2700.0,0.00014584,2]
[400441444,1767556231602,-394.45008645,0.00014584,2]
[400441445,1767556231614,-286.96095259,0.00014584,2]
[400441453,1767556237716,-500.0,0.00014583,2]
[400441454,1767556237727,-500.0,0.00014583,2]
[400441455,1767556237738,-15566.55952812,0.00014584,2]
[400441456,1767556237753,-192897.81986653,0.00014584,2]
[400441457,1767556237876,-1116.61071842,0.00014584,2]
[400441492,1767556239565,-1363.8897835,0.00014584,2]
[400441493,1767556239623,-17873.16740171,0.00014584,2]
[400441494,1767556239724,-265.1286,0.00014584,2]
[400441495,1767556239779,-324.7149346,0.00014584,2]
[400441496,1767556239792,-1279.2779985,0.00014584,2]
[400441497,1767556239804,-424.34554978,0.00014584,2]
[400441498,1767556239834,-1723.07381486,0.00014584,2]
[400441499,1767556239941,-9006.5371147,0.00014584,2]
[400441500,1767556239953,-580719.90540376,0.00014584,2]
[400441501,1767556239964,-6653.87922714,0.00014585,2]
[400441502,1767556239974,-628.8133,0.00014586,2]
[400441503,1767556239985,-532.7014,0.00014586,2]
[400441504,1767556239994,-776.6986,0.00014586,2]
[400441506,1767556240004,-200.0,0.00014685,2]
[400441508,1767556240014,-2000.0,0.00014686,2]
[400441510,1767556240023,-200.0,0.00014686,2]
[400441512,1767556240033,-200.0,0.00014686,2]
[400441514,1767556240043,-1852.42,0.00014742,2]
[400441516,1767556240055,-500.0,0.00014785,2]
[400441518,1767556240066,-500.0,0.00014785,2]
[400441520,1767556240076,-500.0,0.00014785,2]
[400441522,1767556240086,-500.0,0.00014785,2]
[400441524,1767556240095,-500.0,0.00014785,2]
[400441526,1767556240104,-500.0,0.00014785,2]
[400441528,1767556240113,-167.52941689,0.00014785,2]
[400441530,1767556240122,-500.0,0.00014785,2]
[400441533,1767556240132,-500.0,0.00014785,2]
[400441535,1767556240141,-500.0,0.00014785,2]
[400441537,1767556240151,-500.0,0.00014785,2]
[400441539,1767556240160,-500.0,0.00014785,2]
[400441541,1767556240171,-1518.06,0.00014785,2]
[400441542,1767556240180,-200.0,0.00014832,2]
[400441544,1767556240189,-1266.97912113,0.00014833,2]
[400441546,1767556240198,-200.0,0.00014833,2]
[400441548,1767556240208,-999.99,0.00014833,2]
[400441550,1767556240218,-9183.02,0.00014833,2]
[400441552,1767556240227,-150.99,0.00014833,2]
[400441554,1767556240237,-9999.99,0.00014833,2]
[400441556,1767556240246,-150.99,0.00014833,2]
[400441558,1767556240256,-560.33,0.00014833,2]
[400441561,1767556240267,-336.02,0.00014833,2]
[400441563,1767556240276,-200.0,0.00014833,2]
[400441565,1767556240285,-166.66,0.0001485,2]
[400441567,1767556240294,-200.0,0.00014887,2]
[400441569,1767556240303,-896.33,0.00014948,2]
[400441571,1767556240313,-6653.87922707,0.00014953,2]
[400441573,1767556240322,-200.0,0.00014981,2]
[400441575,1767556240331,-200.0,0.00014981,2]
[400441577,1767556240341,-29352.06064266,0.00015,7]
[400441578,1767556240353,-8224.8442823,0.00015004,2]
[400441581,1767556240367,-166.66,0.00015055,2]
[400441583,1767556240376,-1518.06,0.00015059,2]
[400441585,1767556240385,-999.0,0.00015062,3]
[400441587,1767556240394,-200.0,0.00015131,2]
[400441589,1767556240405,-200.0,0.00015131,2]
[400441590,1767556240414,-166.66,0.0001515,2]
[400441592,1767556240425,-200.0,0.00015282,2]
[400441594,1767556240439,-200.0,0.00015282,2]
[400441596,1767556240449,-4269.59,0.00015298,2]
[400441598,1767556240459,-6653.87922707,0.00015322,2]
[400441600,1767556240468,-1518.06,0.00015333,2]
[400441602,1767556240478,-162.22534839,0.00015339,2]
[400441604,1767556240487,-500.0,0.00015361,2]
[400441606,1767556240496,-8224.8442823,0.00015366,2]
[400441608,1767556240505,-500.0,0.00015373,2]
[400441610,1767556240515,-500.0,0.00015373,2]
[400441612,1767556240524,-500.0,0.00015373,2]
[400441614,1767556240532,-227.80986021,0.00015373,2]
[400441616,1767556240542,-500.0,0.00015373,2]
[400441619,1767556240552,-500.0,0.00015373,2]
[400441621,1767556240561,-500.0,0.00015373,2]
[400441623,1767556240570,-500.0,0.00015373,2]
[400441625,1767556240579,-500.0,0.00015373,2]
[400441633,1767556240810,-500.0,0.00015373,2]
[400441634,1767556240821,-504.61831614,0.00015373,2]
[400441635,1767556240830,-500.0,0.00015373,2]
[400441636,1767556240840,-500.0,0.00015373,2]
[400441637,1767556240849,-505.54888776,0.00015373,2]
[400441638,1767556240858,-500.0,0.00015373,2]
[400441639,1767556240867,-500.0,0.00015373,2]
[400441640,1767556240877,-500.0,0.00015373,2]
[400441641,1767556240886,-537.11510591,0.00015373,2]
[400441642,1767556240896,-401.20450479,0.00015373,2]
[400441643,1767556240906,-500.0,0.00015373,2]
[400441644,1767556240916,-500.0,0.00015373,2]
[400441645,1767556240926,-500.0,0.00015373,2]
[400441646,1767556240936,-500.0,0.00015373,2]
[400441647,1767556240947,-11371.69,0.00015392,2]
[400441648,1767556240957,-166.66,0.0001545,2]
[400441649,1767556240966,-166.66,0.00015536,2]
[400441650,1767556240975,-1518.06,0.00015607,2]
[400441651,1767556240985,-6653.87922707,0.0001569,2]
[400441652,1767556240994,-151.0,0.00015707,2]
[400441653,1767556241004,-151.0,0.00015707,2]
[400441654,1767556241014,-151.0,0.00015707,2]
[400441655,1767556241023,-151.0,0.00015707,2]
[400441656,1767556241033,-151.0,0.0001572,2]
[400441657,1767556241043,-151.0,0.0001572,2]
[400441658,1767556241053,-151.0,0.0001572,2]
[400441659,1767556241063,-151.0,0.0001572,2]
[400441660,1767556241074,-8224.8442823,0.00015728,2]
[400441661,1767556241083,-166.66,0.0001575,2]
[400441662,1767556241093,-255.0,0.00015816,2]
[400441663,1767556241103,-1518.06,0.00015881,2]
[400441664,1767556241115,-1000.0,0.00015921,2]
[400441665,1767556241125,-1000.0,0.00015921,2]
[400441666,1767556241135,-1000.0,0.00015921,2]
[400441667,1767556241145,-410.90768099,0.00015921,2]
[400441668,1767556241154,-164.61773369,0.00015921,2]
[400441669,1767556241166,-1000.0,0.00015921,2]
[400441670,1767556241176,-1000.0,0.00015921,2]
[400441671,1767556241187,-1000.0,0.00015921,2]
[400441672,1767556241198,-1000.0,0.00015921,2]
[400441673,1767556241207,-1000.0,0.00015921,2]
[400441674,1767556241217,-1000.0,0.00015921,2]
[400441675,1767556241228,-479.33901688,0.00015921,2]
[400441676,1767556241239,-542.16693919,0.00015921,2]
[400441677,1767556241249,-1000.0,0.00015921,2]
[400441678,1767556241259,-1000.0,0.00015921,2]
[400441679,1767556241268,-1000.0,0.00015921,2]
[400441680,1767556241278,-1000.0,0.00015921,2]
[400441681,1767556241287,-1000.0,0.00015921,2]
[400441682,1767556241297,-420.0,0.00015967,2]
[400441683,1767556241308,-500.0,0.00015972,2]
[400441684,1767556241318,-500.0,0.00015972,2]
[400441685,1767556241328,-500.0,0.00015972,2]
[400441686,1767556241341,-162.71793463,0.00015973,2]
[400441687,1767556241350,-500.0,0.00015973,2]
[400441688,1767556241360,-500.0,0.00015973,2]
[400441689,1767556241373,-500.0,0.00015973,2]
[400441690,1767556241382,-500.0,0.00015973,2]
[400441691,1767556241393,-500.0,0.00015973,2]
[400441692,1767556241403,-500.0,0.00015973,2]
[400441693,1767556241415,-162.60748848,0.00015973,2]
[400441694,1767556241433,-500.0,0.00015973,2]
[400441695,1767556241445,-500.0,0.00015973,2]
[400441696,1767556241456,-500.0,0.00015973,2]
[400441697,1767556241467,-500.0,0.00015973,2]
[400441698,1767556241477,-514.29610495,0.00015973,2]
[400441699,1767556241487,-500.0,0.00015973,2]
[400441700,1767556241496,-500.0,0.00015973,2]
[400441701,1767556241505,-500.0,0.00015973,2]
[400441702,1767556241514,-557.14178352,0.00015973,2]
[400441703,1767556241523,-500.0,0.00015973,2]
[400441704,1767556241532,-501.32441659,0.00015973,2]
[400441705,1767556241542,-519.94704597,0.00015973,2]
[400441706,1767556241552,-500.0,0.00015973,2]
[400441707,1767556241561,-500.0,0.00015973,2]
[400441708,1767556241571,-500.0,0.00015973,2]
[400441709,1767556241581,-335.30855068,0.00015973,2]
[400441710,1767556241591,-500.0,0.00015973,2]
[400441711,1767556241602,-500.0,0.00015973,2]
[400441712,1767556241612,-427.65194977,0.00015973,2]
[400441713,1767556241622,-178.11764647,0.00015973,2]
[400441714,1767556241631,-500.33097651,0.00015973,2]
[400441715,1767556241642,-500.0,0.00015973,2]
[400441716,1767556241652,-500.0,0.00015973,2]
[400441717,1767556241663,-500.0,0.00015973,2]
[400441718,1767556241673,-500.0,0.00015973,2]
[400441719,1767556241682,-640.75623125,0.00015973,2]
[400441720,1767556241693,-500.0,0.00015973,2]
[400441721,1767556241703,-500.0,0.00015973,2]
[400441722,1767556241713,-500.0,0.00015973,2]
[400441723,1767556241723,-500.0,0.00015973,2]
[400441724,1767556241732,-500.0,0.00015973,2]
[400441725,1767556241742,-500.80153356,0.00015973,2]
[400441726,1767556241752,-500.0,0.00015973,2]
[400441727,1767556241762,-510.53211563,0.00015973,2]
[400441728,1767556241772,-500.0,0.00015973,2]
[400441729,1767556241782,-156.8618217,0.00015973,2]
[400441730,1767556241791,-500.0,0.00015973,2]
[400441731,1767556241802,-500.0,0.00015973,2]
[400441732,1767556241812,-397.01027431,0.00015973,2]
[400441733,1767556241821,-500.0,0.00015973,2]
[400441734,1767556241831,-545.35995935,0.00015973,2]
[400441735,1767556241842,-500.0,0.00015973,2]
[400441736,1767556241853,-500.0,0.00015973,2]
[400441737,1767556241863,-500.0,0.00015973,2]
[400441738,1767556241874,-554.1071845,0.00015973,2]
[400441739,1767556241884,-500.0,0.00015973,2]
[400441740,1767556241895,-571.49254252,0.00015973,2]
[400441741,1767556241906,-500.0,0.00015973,2]
[400441742,1767556241917,-500.0,0.00015973,2]
[400441743,1767556241927,-500.0,0.00015973,2]
[400441744,1767556241936,-500.0,0.00015973,2]
[400441745,1767556241948,-182.33791017,0.00015973,2]
[400441746,1767556241957,-500.0,0.00015973,2]
[400441747,1767556241968,-500.0,0.00015973,2]
[400441748,1767556241979,-500.0,0.00015973,2]
[400441749,1767556241988,-165.90197313,0.00015973,2]
[400441750,1767556242000,-500.0,0.00015973,2]
[400441751,1767556242011,-500.0,0.00015973,2]
[400441752,1767556242022,-500.0,0.00015973,2]
[400441753,1767556242033,-500.0,0.00015973,2]
[400441754,1767556242042,-500.0,0.00015973,2]
[400441755,1767556242051,-166.66,0.00016017,2]
[400441756,1767556242061,-193.0,0.00016025,2]
[400441757,1767556242072,-300.0,0.00016025,2]
[400441758,1767556242082,-195.0,0.00016025,2]
[400441759,1767556242092,-300.0,0.00016025,2]
[400441760,1767556242101,-1680.0,0.00016041,2]
[400441761,1767556242110,-195.0,0.00016041,2]
[400441762,1767556242120,-250.0,0.00016041,2]
[400441763,1767556242130,-195.0,0.00016043,2]
[400441764,1767556242139,-6653.87922707,0.00016058,2]
[400441765,1767556242149,-306.0,0.00016076,2]
[400441766,1767556242158,-1200.0,0.00016076,2]
[400441767,1767556242168,-500.0,0.00016088,2]
[400441768,1767556242178,-500.0,0.00016088,2]
[400441769,1767556242187,-500.0,0.00016088,2]
[400441770,1767556242197,-500.0,0.00016088,2]
[400441771,1767556242207,-500.0,0.00016088,2]
[400441772,1767556242216,-354.11325635,0.00016088,2]
[400441773,1767556242226,-500.0,0.00016088,2]
[400441774,1767556242235,-637.77412111,0.00016088,2]
[400441775,1767556242245,-8224.8442823,0.0001609,2]
[400441776,1767556242254,-335.69,0.00016099,2]
[400441777,1767556242264,-9999.99,0.00016116,2]
[400441778,1767556242273,-345.10479089,0.00016143,2]
[400441779,1767556242282,-300.0,0.0001615,2]
[400441780,1767556242292,-195.0,0.0001615,2]
[400441781,1767556242301,-250.0,0.0001615,2]
[400441782,1767556242311,-300.0,0.0001615,2]
[400441783,1767556242320,-2500.0,0.0001615,2]
[400441784,1767556242330,-195.0,0.00016152,2]
[400441785,1767556242339,-250.0,0.00016152,2]
[400441786,1767556242348,-1518.06,0.00016155,2]
[400441787,1767556242359,-162.22534839,0.00016193,2]
[400441788,1767556242371,-5465.37,0.00016281,2]
[400441789,1767556242380,-1100.0,0.00016302,2]
[400441790,1767556242391,-1764.38,0.00016348,2]
[400441791,1767556242402,-832.0,0.000164,2]
[400441792,1767556242412,-6653.87922707,0.00016427,2]
[400441793,1767556242421,-1518.06,0.00016429,2]
[400441794,1767556242431,-800.0,0.00016438,2]
[400441795,1767556242440,-8224.8442823,0.00016452,2]
[400441796,1767556242450,-951.20369777,0.00016468,2]
[400441797,1767556242460,-1500.0,0.00016468,2]
[400441798,1767556242469,-1500.0,0.00016468,2]
[400441799,1767556242479,-1275.12436298,0.00016468,2]
[400441800,1767556242488,-1500.0,0.00016468,2]
[400441801,1767556242497,-1500.0,0.00016468,2]
[400441802,1767556242506,-166.66,0.00016499,2]
[400441803,1767556242515,-235.84568342,0.00016511,2]
[400441804,1767556242524,-431.84052269,0.0001652,2]
[400441805,1767556242533,-1000.0,0.00016521,2]
[400441806,1767556242543,-1000.0,0.00016521,2]
[400441807,1767556242552,-1000.0,0.00016521,2]
[400441808,1767556242562,-609.46856999,0.00016521,2]
[400441809,1767556242571,-1000.0,0.00016521,2]
[400441810,1767556242580,-1000.0,0.00016521,2]
[400441811,1767556242589,-1003.67303953,0.00016521,2]
[400441812,1767556242598,-1000.0,0.00016521,2]
[400441813,1767556242608,-1000.0,0.00016521,2]
[400441814,1767556242617,-1000.0,0.00016521,2]
[400441815,1767556242627,-1000.0,0.00016521,2]
[400441816,1767556242636,-285.96433615,0.00016521,2]
[400441817,1767556242645,-1000.0,0.00016521,2]
[400441818,1767556242655,-1000.0,0.00016521,2]
[400441819,1767556242664,-194.13251181,0.00016521,2]
[400441820,1767556242673,-1000.0,0.00016521,2]
[400441821,1767556242682,-1000.0,0.00016521,2]
[400441822,1767556242692,-167.71055694,0.00016521,2]
[400441823,1767556242702,-577.0015359,0.00016521,2]
[400441824,1767556242713,-1000.0,0.00016521,2]
[400441825,1767556242724,-690.40303512,0.00016521,2]
[400441826,1767556242733,-1003.14800649,0.00016521,2]
[400441827,1767556242742,-1000.0,0.00016521,2]
[400441828,1767556242751,-1000.0,0.00016521,2]
[400441829,1767556242760,-1000.0,0.00016521,2]
[400441830,1767556242768,-1000.0,0.00016521,2]
[400441831,1767556242777,-1000.90262975,0.00016521,2]
[400441832,1767556242786,-1000.0,0.00016521,2]
[400441833,1767556242795,-1000.0,0.00016521,2]
[400441834,1767556242804,-1000.0,0.00016521,2]
[400441835,1767556242813,-1000.0,0.00016521,2]
[400441836,1767556242821,-500.0,0.00016521,2]
[400441837,1767556242831,-879.37708977,0.00016521,2]
[400441838,1767556242840,-1000.0,0.00016521,2]
[400441839,1767556242850,-1000.82934742,0.00016521,2]
[400441840,1767556242859,-586.98015224,0.00016521,2]
[400441841,1767556242868,-500.0,0.00016521,2]
[400441842,1767556242877,-1000.0,0.00016521,2]
[400441843,1767556242885,-1000.0,0.00016521,2]
[400441844,1767556242894,-500.33330588,0.00016521,2]
[400441845,1767556242903,-1000.0,0.00016521,2]
[400441846,1767556242911,-800.62207839,0.00016521,2]
[400441847,1767556242922,-1000.0,0.00016521,2]
[400441848,1767556242931,-664.1404911,0.00016521,2]
[400441849,1767556242940,-1000.0,0.00016521,2]
[400441850,1767556242948,-500.0,0.00016521,2]
[400441851,1767556242957,-500.0,0.00016521,2]
[400441852,1767556242966,-676.92971067,0.00016521,2]
[400441853,1767556242975,-500.0,0.00016521,2]
[400441854,1767556242984,-1518.06,0.00016703,2]
[400441855,1767556242993,-165.25,0.00016712,2]
[400441856,1767556243002,-6653.87922707,0.00016795,2]
[400441857,1767556243012,-8224.8442823,0.00016814,2]
[400441858,1767556243021,-1518.06,0.00016977,2]
[400441859,1767556243030,-166.66,0.0001698,2]
[400441860,1767556243040,-200.0,0.00016983,2]
[400441861,1767556243049,-500.0,0.00017,7]
[400441862,1767556243058,-500.0,0.00017,7]
[400441863,1767556243068,-500.0,0.00017,7]
[400441864,1767556243076,-466.31,0.00017,7]
[400441865,1767556243086,-500.0,0.00017006,2]
[400441867,1767556243095,-2000.0,0.00017016,2]
[400441868,1767556243104,-237.07480166,0.00017016,2]
[400441869,1767556243113,-2140.31028063,0.00017016,2]
[400441870,1767556243123,-2000.0,0.00017016,2]
[400441871,1767556243132,-433.0,0.00017035,2]
[400441872,1767556243141,-162.22534839,0.00017046,2]
[400441874,1767556243151,-520.78153247,0.00017068,2]
[400441875,1767556243160,-278.63852243,0.00017068,2]
[400441876,1767556243169,-505.96387624,0.00017068,2]
[400441877,1767556243179,-849.75332306,0.00017068,2]
[400441878,1767556243189,-851.49636502,0.00017068,2]
[400441879,1767556243198,-1426.73386812,0.00017068,2]
[400441880,1767556243209,-1388.04216595,0.00017068,2]
[400441882,1767556243218,-1000.0,0.00017068,2]
[400441883,1767556243227,-1100.22634579,0.00017068,2]
[400441884,1767556243237,-1000.0,0.00017068,2]
[400441885,1767556243246,-1000.9665977,0.00017068,2]
[400441886,1767556243256,-1500.0,0.00017068,2]
[400441887,1767556243265,-1000.0,0.00017068,2]
[400441888,1767556243274,-1500.0,0.00017068,2]
[400441889,1767556243284,-478.24155127,0.00017068,2]
[400441890,1767556243293,-1000.0,0.00017068,2]
[400441891,1767556243303,-1000.53069493,0.00017068,2]
[400441892,1767556243312,-1500.0,0.00017068,2]
[400441893,1767556243321,-1500.0,0.00017068,2]
[400441894,1767556243331,-1500.0,0.00017068,2]
[400441895,1767556243342,-969.49140295,0.00017068,2]
[400441896,1767556243352,-152.98016223,0.00017085,2]
[400441897,1767556243367,-5465.37,0.00017095,2]
[400441898,1767556243378,-1100.0,0.0001716,2]
[400441899,1767556243387,-6653.87922707,0.00017163,2]
[400441900,1767556243396,-8224.8442823,0.00017176,2]
[400441901,1767556243407,-966.0,0.0001719,2]
[400441902,1767556243417,-1518.06,0.00017251,2]
[400441903,1767556243431,-613.0,0.00017275,2]
[400441904,1767556243440,-1404.0,0.00017275,2]
[400441905,1767556243449,-3465.0,0.00017275,2]
[400441906,1767556243458,-430.0,0.00017275,2]
[400441907,1767556243467,-3201.0,0.00017275,2]
[400441908,1767556243478,-6547.0,0.00017275,2]
[400441909,1767556243488,-565.0,0.00017275,2]
[400441910,1767556243498,-4451.648,0.00017275,2]
[400441911,1767556243508,-966.0,0.00017341,2]
[400441912,1767556243518,-587.0,0.00017483,2]
[400441913,1767556243527,-152.98016222,0.00017493,2]
[400441914,1767556243537,-152.11909412,0.00017517,2]
[400441915,1767556243546,-1518.06,0.00017525,2]
[400441916,1767556243555,-6653.87922707,0.00017532,2]
[400441917,1767556243564,-801.86347734,0.00017534,2]
[400441918,1767556243573,-8224.8442823,0.00017538,2]
[400441919,1767556243582,-2500.0,0.00017564,2]
[400441920,1767556243591,-2500.0,0.00017564,2]
[400441921,1767556243599,-1491.73851592,0.00017616,2]
[400441922,1767556243609,-1378.32791478,0.00017616,2]
[400441923,1767556243618,-2003.0033088,0.00017616,2]
[400441924,1767556243627,-2000.0,0.00017616,2]
[400441925,1767556243636,-966.0,0.00017629,2]
[400441926,1767556243645,-361.74750535,0.0001764,2]
[400441927,1767556243655,-2351.0,0.00017646,2]
[400441928,1767556243664,-281.0,0.00017674,2]
[400441929,1767556243674,-832.0,0.0001768,2]
[400441930,1767556243683,-281.0,0.00017697,2]
[400441931,1767556243691,-1000.0,0.000177,2]
[400441932,1767556243700,-300.0,0.00017739,2]
[400441933,1767556243709,-300.0,0.00017757,2]
[400441934,1767556243719,-281.0,0.00017762,2]
[400441935,1767556243728,-1000.0,0.0001777,2]
[400441936,1767556243737,-281.0,0.00017785,2]
[400441937,1767556243747,-1518.06,0.00017799,2]
[400441938,1767556243757,-345.10479089,0.000178,2]
[400441939,1767556243767,-500.0,0.00017808,2]
[400441940,1767556243778,-1000.0,0.00017808,2]
[400441941,1767556243787,-1000.0,0.00017808,2]
[400441942,1767556243796,-1000.0,0.00017808,2]
[400441943,1767556243805,-1000.0,0.00017808,2]
[400441944,1767556243814,-1076.95721268,0.00017808,2]
[400441945,1767556243823,-500.0,0.00017808,2]
[400441946,1767556243831,-504.75468002,0.00017808,2]
[400441947,1767556243840,-500.0,0.00017808,2]
[400441948,1767556243849,-500.0,0.00017808,2]
[400441949,1767556243860,-504.23547705,0.00017808,2]
[400441950,1767556243870,-422.71458731,0.00017808,2]
[400441951,1767556243880,-883.41481,0.0001782,2]
[400441952,1767556243890,-883.41481,0.0001782,2]
[400441953,1767556243899,-883.41481,0.0001783,2]
[400441954,1767556243907,-176.8649333,0.00017835,3]
[400441955,1767556243916,-281.0,0.00017855,2]
[400441956,1767556243927,-200.0,0.00017856,2]
[400441957,1767556243936,-883.41482,0.0001786,2]
[400441958,1767556243946,-883.41481,0.0001788,2]
[400441959,1767556243955,-151.0,0.00017897,2]
[400441960,1767556243964,-10274.4827863,0.000179,3]
[400441961,1767556243974,-152.98016222,0.000179,2]
[400441962,1767556243983,-10000.0,0.000179,2]
[400441963,1767556243994,-1000.0,0.000179,2]
[400441964,1767556244004,-8224.8442823,0.000179,2]
[400441965,1767556244015,-306.0,0.000179,2]
[400441966,1767556244025,-2996.33421602,0.000179,2]
[400441967,1767556244035,-6653.87922707,0.000179,2]
[400441968,1767556244044,-162.22534839,0.000179,2]
[400441969,1767556244053,-15950.699198,0.000179,2]
[400441970,1767556244063,-380.28936169,0.000179,2]
[400441971,1767556244072,-2099.0,0.000179,2]
[400441972,1767556244083,-5465.37,0.00017909,2]
[400441973,1767556244092,-883.41481,0.0001791,2]
[400441974,1767556244103,-300.0,0.00017947,2]
[400441975,1767556244113,-300.0,0.00017949,2]
[400441976,1767556244124,-300.0,0.0001795,2]
[400441977,1767556244134,-300.0,0.00017964,2]
[400441978,1767556244143,-300.0,0.00017972,2]
[400441979,1767556244152,-150.0,0.00017973,2]
[400441980,1767556244161,-1000.0,0.00017978,2]
[400441981,1767556244171,-300.0,0.0001798,2]
[400441982,1767556244180,-1000.0,0.00017986,2]
[400441983,1767556244189,-300.0,0.00017994,2]
[400441984,1767556244198,-151.0,0.00017997,2]
[400441985,1767556244208,-500.0,0.00017998,2]
[400441986,1767556244217,-522.69749362,0.00017998,2]
[400441987,1767556244226,-300.0,0.00017999,2]
[400441988,1767556244235,-2581970.23264593,0.00018,2]
[400441991,1767556244251,-4076.14109984,0.00018,2]
[400441995,1767556244286,-254.39513532,0.00017275,2]
[400441997,1767556244296,-541.54300055,0.00017275,2]
[400442000,1767556244308,-464.76347741,0.00017275,2]
[400442002,1767556244319,-1173.29838672,0.00017275,2]
[400442004,1767556244328,-316.38816254,0.00018,2]
[400442006,1767556244339,-423.95581672,0.00018,2]
[400442008,1767556244350,-270.17399999,0.00018,2]
[400442015,1767556244407,-836.99523524,0.00018,2]
[400442017,1767556244418,-1325.45,0.00018,2]
[400442054,1767556245556,-999.98,0.00018,2]
[400442055,1767556245567,-33163.57156356,0.00018,2]
[400442056,1767556245656,-1124.84547774,0.00018,2]
[400442057,1767556245669,-7194.14160012,0.00018,2]
[400442058,1767556245681,-44591.77749143,0.00018,2]
[400442059,1767556245692,-9372.70609589,0.00018,2]
[400442060,1767556245823,-3165.35052926,0.00018,2]
[400442094,1767556293992,1001.254,0.00014294,2]
[400442095,1767556294046,161.32,0.00014294,2]
[400442098,1767556313901,380.28936169,0.00014486,2]
[400442111,1767556366797,-500.0,0.00014582,2]
[400442112,1767556366826,-594.4697786,0.00014582,2]
[400442113,1767556366861,-500.0,0.00014582,2]
[400442114,1767556366895,-500.0,0.00014582,2]
[400442115,1767556366927,-193.01836768,0.00014582,2]
[400442116,1767556366960,-500.0,0.00014582,2]
[400442117,1767556366994,-500.0,0.00014582,2]
[400442118,1767556367027,-500.0,0.00014582,2]
[400442119,1767556367059,-533.38547657,0.00014582,2]
[400442120,1767556367092,-500.0,0.00014582,2]
[400442121,1767556367331,-358.2627543,0.00014582,2]
[400442122,1767556367376,-141.7372457,0.00014582,2]
[400442123,1767556367413,-500.0,0.00014582,2]
[400442124,1767556367449,-500.0,0.00014582,2]
[400442125,1767556367483,-500.0,0.00014582,2]
[400442126,1767556367516,-500.0,0.00014582,2]
[400442127,1767556367552,-500.0,0.00014582,2]